bitfinex/quotes_SOLUSD_20251224
["timestamp","ask_amount","ask_price","bid_price","bid_amount"]
[1766537152335,8.84587067,123.99,123.97,1.68133379]
[1766537152637,0.78,123.99,123.97,1.68133379]
[1766537154329,0.1,123.99,123.97,1.68133379]
[1766537154739,0.1,123.99,123.96,15.3]
[1766537154936,0.1,123.99,123.97,2.24133379]
[1766537156738,11.11767296,124.02,123.98,2.14133379]
[1766537156940,0.68,124.01,123.99,1.68133379]
[1766537157818,19.18116355,124.02,123.99,16.42133379]
[1766537158012,0.68,124.02,124.0,1.68133379]
[1766537158646,8.16267611,124.03,124.0,2.14133379]
[1766537158941,8.84266745,124.03,124.0,1.68133379]
[1766537159121,8.16266745,124.03,123.99,15.2]
[1766537159323,0.68,124.02,123.99,16.88133379]
[1766537159558,0.68,124.02,123.99,2.14133379]
[1766537159719,0.68,124.02,123.99,16.88133379]
[1766537160140,8.74323437,124.02,123.99,16.88133379]
[1766537160622,0.68,124.02,123.99,16.88133379]
[1766537161243,0.68,124.02,123.99,2.14133379]
[1766537161425,0.68,124.02,123.99,16.86133379]
[1766537161630,0.68,124.02,124.0,1.68133379]
[1766537161838,8.74334004,124.02,124.0,1.68133379]
[1766537162420,8.74334004,124.02,123.99,16.86133379]
[1766537163044,8.74334004,124.02,124.0,1.68133379]
[1766537163932,8.74334004,124.02,123.99,15.18]
[1766537163933,8.74334004,124.02,123.99,0.46]
[1766537164247,8.74334004,124.02,124.0,1.68133379]
[1766537165123,0.68,124.02,124.0,1.68133379]
[1766537165851,0.78,124.03,124.01,1.68133379]
[1766537166032,0.78,124.03,124.0,8.52418807]
[1766537166227,0.1,124.03,124.01,1.68133379]
[1766537166425,0.1,124.03,124.02,1.68133379]
[1766537166722,0.68,124.04,124.02,1.68133379]
[1766537167140,0.68,124.04,124.02,16.40133379]
[1766537167547,0.68,124.04,124.03,1.68133379]
[1766537169046,0.1,124.06,124.03,1.68133379]
[1766537169226,0.82,124.06,124.02,24.92448605]
[1766537170869,0.72,124.05,124.02,22.78315226]
[1766537171042,0.72,124.05,124.02,24.46448605]
[1766537171245,0.72,124.05,124.02,22.78315226]
[1766537171445,0.72,124.05,124.02,24.46448605]
[1766537172362,0.72,124.05,124.02,24.92448605]
[1766537173030,0.82,124.06,124.02,24.92448605]
[1766537173231,2.40133379,124.03,123.99,1.68133379]
[1766537173435,1.68133379,124.01,123.98,14.72]
[1766537173661,0.72,123.98,123.96,20.34942647]
[1766537173861,2.40133379,123.98,123.96,14.72]
[1766537174244,10.43767296,124.01,123.96,14.72]
[1766537174245,2.40133379,123.99,123.96,14.72]
[1766537174459,10.46701334,123.99,123.96,14.72]
[1766537174659,0.72,123.98,123.96,14.72]
[1766537174858,10.46701334,123.99,123.96,14.72]
[1766537175064,9.74701334,123.99,123.96,14.72]
[1766537175362,0.72,123.98,123.95,0.46]
[1766537175538,2.40133379,123.98,123.95,15.18]
[1766537175942,0.72,123.98,123.95,15.18]
[1766537178170,8.06646769,123.97,123.95,15.18]
[1766537178338,2.40133379,123.96,123.92,0.46]
[1766537178546,0.72,123.97,123.93,24.92992379]
[1766537178766,2.40133379,124.0,123.96,2.14133379]
[1766537178968,0.72,124.0,123.96,16.86133379]
[1766537179582,2.40133379,124.0,123.96,16.86133379]
[1766537180274,10.46594407,124.0,123.96,15.18]
[1766537180457,0.72,123.99,123.96,15.18]
[1766537180769,2.40133379,123.99,123.96,14.72]
[1766537182265,10.46656117,123.99,123.96,14.72]
[1766537183777,10.46656117,123.99,123.95,0.46]
[1766537183778,2.40133379,123.98,123.95,0.46]
[1766537183966,2.40133379,123.97,123.94,14.72]
[1766537184970,11.15767296,123.99,123.95,1.68133379]
[1766537185174,20.90418639,123.99,123.96,0.46]
[1766537186093,20.90418639,123.99,123.95,2.14133379]
[1766537189692,20.90418639,123.99,123.95,0.46]
[1766537189997,1.68133379,123.98,123.93,24.21405222]
[1766537190187,38.66576896,123.99,123.93,14.72]
[1766537190188,10.46855254,123.96,123.93,14.72]
[1766537190373,9.74855254,123.96,123.92,0.46]
[1766537190693,0.72,123.94,123.92,14.72]
[1766537191086,1.68133379,123.95,123.92,14.72]
[1766537191286,2.40133379,123.95,123.92,14.72]
[1766537192101,10.46953408,123.95,123.92,14.72]
[1766537192392,0.72,123.94,123.92,14.72]
[1766537192572,1.68133379,123.93,123.89,10.41290874]
[1766537192898,0.72,123.93,123.9,24.93224066]
[1766537193592,0.72,123.93,123.9,15.18]
[1766537195684,8.78912668,123.93,123.9,15.18]
[1766537195989,3.34892252,123.92,123.89,0.2]
[1766537196193,8.78869594,123.94,123.9,2.62892252]
[1766537196494,0.72,123.94,123.91,15.2]
[1766537197395,8.78845912,123.94,123.91,15.2]
[1766537197713,0.7,123.93,123.89,0.66]
[1766537198000,0.7,123.92,123.9,14.74]
[1766537199671,0.72,123.91,123.89,14.94]
[1766537202299,8.79041499,123.91,123.89,14.94]
[1766537202496,0.72,123.91,123.89,14.94]
[1766537204898,10.69891119,123.92,123.89,14.94]
[1766537205108,8.06998867,123.92,123.89,15.4]
[1766537205416,8.78998867,123.92,123.89,14.94]
[1766537206119,0.72,123.92,123.89,14.94]
[1766537206272,11.41669178,123.95,123.91,0.46]
[1766537206599,11.41669178,123.95,123.91,15.2]
[1766537206789,11.41669178,123.95,123.91,17.82892252]
[1766537207698,0.72,123.94,123.91,15.2]
[1766537208212,0.72,123.93,123.91,14.74]
[1766537213030,0.72,123.94,123.91,14.74]
[1766537213320,0.72,123.94,123.91,17.36892252]
[1766537214433,19.22507807,123.96,123.92,0.46]
[1766537214723,11.15767296,123.96,123.93,15.2]
[1766537215503,19.22486514,123.96,123.93,14.74]
[1766537215910,0.72,123.95,123.93,14.74]
[1766537219722,8.78666735,123.97,123.93,25.89794246]
[1766537219929,0.72,123.97,123.94,2.62892252]
[1766537220315,20.16245688,124.0,123.95,17.82892252]
[1766537220316,8.78546783,123.99,123.95,17.82892252]
[1766537220522,11.41439035,123.99,123.95,17.82892252]
[1766537220714,8.78546783,123.99,123.95,17.82892252]
[1766537221032,8.06481094,124.0,123.96,3.08892252]
[1766537221329,8.78481094,124.0,123.96,3.08892252]
[1766537221625,8.78481094,124.0,123.95,14.74]
[1766537221626,8.78356798,124.02,123.98,2.62892252]
[1766537221817,10.69175678,124.03,123.98,10.69457906]
[1766537222025,11.41175678,124.03,123.99,17.36892252]
[1766537222227,0.72,124.03,123.99,17.36892252]
[1766537222435,0.72,124.03,124.0,2.62892252]
[1766537223445,8.78274105,124.03,123.99,17.82892252]
[1766537224035,0.72,124.02,123.98,17.36892252]
[1766537224907,0.72,124.02,123.98,17.82892252]
[1766537225109,0.72,124.02,123.98,25.89470705]
[1766537225309,0.72,124.02,123.99,2.62892252]
[1766537226122,8.78325143,124.02,123.99,2.62892252]
[1766537226927,0.66,124.01,123.98,3.08892252]
[1766537227145,0.66,124.01,123.98,17.36892252]
[1766537227318,0.66,124.01,123.98,14.74]
[1766537227928,0.66,124.01,123.99,2.62892252]
[1766537229836,0.66,124.01,123.96,8.06661238]
[1766537229837,0.66,124.0,123.96,8.06661238]
[1766537230137,0.66,124.0,123.95,18.50503692]
[1766537230312,0.66,124.0,123.96,2.62892252]
[1766537230635,0.66,124.0,123.96,3.08892252]
[1766537232642,8.7247192,124.0,123.96,3.08892252]
[1766537232941,0.66,123.99,123.96,2.62892252]
[1766537233127,0.66,123.99,123.95,23.24736396]
[1766537233332,0.66,123.99,123.95,25.87628648]
[1766537233842,8.72521532,123.99,123.95,25.87628648]
[1766537234739,8.72521532,123.99,123.96,2.62892252]
[1766537237645,0.66,123.98,123.94,2.62892252]
[1766537237826,0.66,123.97,123.94,2.62892252]
[1766537238144,0.66,123.97,123.94,17.34892252]
[1766537238936,0.66,123.97,123.94,14.72]
[1766537241045,8.72657599,123.97,123.94,14.72]
[1766537241234,0.66,123.96,123.94,14.72]
[1766537245047,8.72717441,123.96,123.94,14.72]
[1766537246747,0.66,123.96,123.94,14.72]
[1766537249677,22.79400038,123.98,123.94,25.87722]
[1766537249678,0.66,123.98,123.94,25.87722]
[1766537251256,19.16352926,123.98,123.94,25.87722]
[1766537251445,0.66,123.97,123.94,25.87722]
[1766537254364,0.66,123.97,123.94,23.24829748]
[1766537254582,0.66,123.97,123.94,25.87722]
[1766537254754,0.66,123.97,123.94,17.80892252]
[1766537255064,8.72647666,123.97,123.94,17.80892252]
[1766537255260,8.72647666,123.97,123.94,15.18]
[1766537257262,0.66,123.97,123.94,15.18]
[1766537258169,0.66,123.97,123.91,0.46]
[1766537258170,2.3809722,123.95,123.91,0.46]
[1766537258472,0.7,123.93,123.91,14.74]
[1766537258840,1.6809722,123.93,123.91,14.74]
[1766537259043,1.6809722,123.93,123.89,10.41232684]
[1766537259044,0.7,123.92,123.89,0.2]
[1766537259441,8.77008125,123.92,123.89,0.2]
[1766537259840,0.7,123.92,123.89,0.2]
[1766537260044,8.76933018,123.93,123.89,2.3409722]
[1766537260979,0.71,123.92,123.89,2.3409722]
[1766537261483,8.77799046,123.95,123.91,2.1409722]
[1766537261669,0.71,123.95,123.92,2.1409722]
[1766537263461,0.71,123.95,123.92,0.46]
[1766537263762,0.71,123.95,123.92,2.1409722]
[1766537264587,1.6809722,123.97,123.92,2.1409722]
[1766537264588,10.45766293,123.97,123.93,2.1409722]
[1766537264775,0.71,123.96,123.93,2.1409722]
[1766537264985,0.71,123.96,123.93,0.46]
[1766537266077,0.71,123.96,123.92,10.21045616]
[1766537266078,8.77715734,123.96,123.92,10.21045616]
[1766537266677,0.71,123.95,123.92,2.1409722]
[1766537266873,1.6809722,123.95,123.9,2.1409722]
[1766537267085,0.71,123.94,123.9,16.8809722]
[1766537268172,8.77881463,123.94,123.9,16.8809722]
[1766537268376,0.71,123.93,123.9,1.6809722]
[1766537268583,0.71,123.93,123.9,2.1409722]
[1766537268889,8.77881463,123.94,123.91,0.46]
[1766537269092,8.77881463,123.94,123.91,2.1409722]
[1766537269298,8.77881463,123.94,123.91,1.6809722]
[1766537269678,8.77881463,123.94,123.9,2.1409722]
[1766537270780,8.77802762,123.95,123.91,1.6809722]
[1766537270984,8.77802762,123.95,123.91,2.1409722]
[1766537271996,8.77802762,123.95,123.92,1.6809722]
[1766537273100,0.71,123.93,123.89,8.73136506]
[1766537273272,0.71,123.93,123.9,1.6809722]
[1766537273474,0.71,123.94,123.91,1.6809722]
[1766537274302,8.77858966,123.94,123.91,1.6809722]
[1766537276904,8.77858966,123.94,123.9,2.1409722]
[1766537277102,0.71,123.93,123.9,2.1409722]
[1766537278511,8.06858966,123.94,123.91,1.6809722]
[1766537278711,8.77858966,123.94,123.91,2.1409722]
[1766537279015,8.77858966,123.94,123.91,1.6809722]
[1766537282013,0.71,123.93,123.9,2.1409722]
[1766537282213,0.71,123.92,123.89,9.95263912]
[1766537282394,0.71,123.92,123.89,2.3409722]
[1766537287924,0.71,123.92,123.9,1.6809722]
[1766537289500,0.71,123.92,123.89,2.3409722]
[1766537291018,8.77986586,123.92,123.89,0.66]
[1766537291224,0.69,123.91,123.89,0.2]
[1766537293126,8.76062262,123.91,123.89,0.2]
[1766537293333,0.69,123.9,123.89,0.2]
[1766537297734,8.76102502,123.9,123.89,0.2]
[1766537298112,0.69,123.9,123.89,0.2]
[1766537303149,8.76062082,123.91,123.89,0.2]
[1766537304652,8.76102502,123.9,123.89,0.2]
[1766537304945,0.69,123.9,123.89,0.2]
[1766537306850,8.07083034,123.91,123.89,0.2]
[1766537307046,0.69,123.91,123.89,0.2]
[1766537311856,8.07050969,123.91,123.89,0.2]
[1766537312156,0.69,123.9,123.89,0.2]
[1766537312956,8.76102502,123.9,123.89,0.2]
[1766537313253,8.76102502,123.9,123.87,2.1409722]
[1766537313254,0.69,123.9,123.87,2.1409722]
[1766537313425,0.69,123.89,123.86,1.6809722]
[1766537313949,0.69,123.89,123.85,2.3409722]
[1766537315457,8.76181776,123.89,123.85,2.3409722]
[1766537316458,8.76181776,123.89,123.85,10.41523052]
[1766537316957,8.76181776,123.89,123.85,9.75523052]
[1766537317160,0.7,123.9,123.87,2.3409722]
[1766537317955,0.7,123.91,123.88,3.28888271]
[1766537318163,0.7,123.93,123.9,3.28888271]
[1766537318859,8.7691629,123.93,123.9,3.28888271]
[1766537320134,8.7691629,123.93,123.88,8.73216307]
[1766537320135,0.7,123.92,123.88,8.73216307]
[1766537320338,0.7,123.92,123.89,2.62888271]
[1766537320746,0.7,123.92,123.89,3.28888271]
[1766537322463,0.7,123.92,123.9,2.62888271]
[1766537323355,19.20625167,123.94,123.9,3.28888271]
[1766537323553,19.20625167,123.94,123.9,2.62888271]
[1766537323765,19.20625167,123.94,123.91,0.66]
[1766537323937,8.76857871,123.94,123.91,3.28888271]
[1766537324438,0.7,123.93,123.9,3.28888271]
[1766537327252,0.7,123.92,123.89,2.62888271]
[1766537327453,0.7,123.92,123.88,3.28888271]
[1766537327970,0.7,123.92,123.89,2.62888271]
[1766537329172,8.76989947,123.92,123.89,2.62888271]
[1766537330670,0.7,123.91,123.89,2.62888271]
[1766537332885,0.7,123.9,123.88,2.62888271]
[1766537333986,0.7,123.9,123.87,2.62888271]
[1766537334649,0.7,123.89,123.87,2.62888271]
[1766537336081,0.7,123.89,123.86,3.28888271]
[1766537337360,8.77120528,123.9,123.87,0.66]
[1766537337770,8.77120528,123.9,123.87,3.28888271]
[1766537340260,8.07120528,123.9,123.87,3.28888271]
[1766537340460,0.7,123.89,123.87,3.28888271]
[1766537342386,0.7,123.89,123.87,2.62888271]
[1766537344889,17.36888271,123.92,123.89,0.66]
[1766537345067,15.44,123.92,123.89,0.66]
[1766537345268,8.76976924,123.92,123.89,3.28888271]
[1766537345577,0.7,123.91,123.89,3.28888271]
[1766537346994,0.7,123.91,123.88,2.62888271]
[1766537347496,0.7,123.91,123.88,3.28888271]
[1766537348395,0.7,123.91,123.88,0.66]
[1766537348596,0.7,123.91,123.88,3.28888271]
[1766537363709,8.07051881,123.91,123.86,8.07348682]
[1766537364005,0.68,123.9,123.88,2.62888271]
[1766537365707,8.0697224,123.92,123.88,2.62888271]
[1766537366009,0.68,123.91,123.88,3.28888271]
[1766537372831,8.0705462,123.91,123.88,2.62888271]
[1766537372998,0.68,123.9,123.88,2.62888271]
[1766537374410,0.68,123.9,123.87,11.3616613]
[1766537375325,0.68,123.9,123.87,10.7016613]
[1766537375531,0.68,123.9,123.88,0.66]
[1766537377130,0.68,123.9,123.87,11.3616613]
[1766537378233,0.68,123.9,123.87,10.7016613]
[1766537378404,0.68,123.9,123.88,0.66]
[1766537379131,0.68,123.9,123.87,11.3616613]
[1766537380115,0.68,123.9,123.87,10.41531703]
[1766537381427,0.68,123.9,123.87,9.75531703]
[1766537381625,0.72,123.91,123.88,8.73206323]
[1766537382312,0.72,123.91,123.88,10.41460167]
[1766537384635,0.72,123.91,123.87,8.07295029]
[1766537384831,0.72,123.91,123.87,10.41548873]
[1766537386637,0.72,123.91,123.87,9.75548873]
[1766537386843,0.72,123.91,123.88,0.66]
[1766537387443,0.72,123.91,123.88,2.34253844]
[1766537397040,0.72,123.91,123.88,10.4146777]
[1766537397219,0.72,123.91,123.88,2.34253844]
[1766537398045,0.72,123.91,123.89,1.68253844]
[1766537398845,0.72,123.91,123.88,2.34253844]
[1766537399344,0.72,123.9,123.87,2.34253844]
[1766537399520,0.72,123.89,123.86,1.68253844]
[1766537400320,0.72,123.89,123.84,18.51253264]
[1766537400321,8.07177775,123.89,123.84,18.51253264]
[1766537400532,8.07177775,123.89,123.84,12.7802114]
[1766537400533,0.72,123.88,123.84,12.7802114]
[1766537400841,0.72,123.87,123.84,1.68253844]
[1766537401141,0.72,123.85,123.82,2.54253844]
[1766537401340,0.72,123.85,123.84,1.68253844]
[1766537401543,0.72,123.88,123.84,1.68253844]
[1766537401919,0.72,123.87,123.84,1.68253844]
[1766537402122,0.72,123.87,123.84,2.34253844]
[1766537402322,0.72,123.88,123.85,2.34253844]
[1766537402637,0.72,123.88,123.85,1.68253844]
[1766537402943,0.72,123.88,123.84,2.34253844]
[1766537403350,0.72,123.88,123.84,9.75746851]
[1766537403646,0.72,123.89,123.87,1.68253844]
[1766537405748,0.72,123.89,123.86,0.66]
[1766537406046,0.72,123.89,123.86,2.34253844]
[1766537406230,8.07177149,123.89,123.86,1.68253844]
[1766537406427,0.72,123.88,123.86,1.68253844]
[1766537406635,0.72,123.88,123.82,20.38955314]
[1766537406636,0.72,123.86,123.82,2.54253844]
[1766537406829,0.72,123.85,123.82,1.88253844]
[1766537407039,0.72,123.85,123.82,2.54253844]
[1766537407336,0.72,123.85,123.83,1.68253844]
[1766537411230,0.72,123.85,123.82,10.61866666]
[1766537411933,0.72,123.85,123.82,0.2]
[1766537412131,0.68,123.84,123.82,0.2]
[1766537413554,0.68,123.83,123.82,0.2]
[1766537418152,0.68,123.83,123.81,0.2]
[1766537420245,0.68,123.84,123.81,0.91]
[1766537421346,0.68,123.86,123.82,2.39253844]
[1766537421660,0.68,123.86,123.83,1.68253844]
[1766537422062,0.68,123.89,123.86,0.71]
[1766537422242,0.68,123.89,123.86,2.39253844]
[1766537423858,0.68,123.9,123.87,2.39253844]
[1766537426269,36.59691748,123.92,123.87,2.39253844]
[1766537426270,8.72991629,123.92,123.88,1.68253844]
[1766537426563,8.06991629,123.92,123.88,2.37253844]
[1766537426744,0.66,123.91,123.88,2.37253844]
[1766537426946,0.66,123.91,123.89,1.68253844]
[1766537430356,0.66,123.9,123.87,1.68253844]
[1766537430666,0.66,123.9,123.87,2.37253844]
[1766537431244,0.66,123.9,123.88,1.68253844]
[1766537434271,0.66,123.9,123.87,10.44541293]
[1766537437389,0.66,123.9,123.87,2.37253844]
[1766537438878,0.67,123.89,123.85,8.76402762]
[1766537439301,0.67,123.89,123.86,2.37253844]
[1766537440286,0.67,123.89,123.86,10.44616226]
[1766537440862,0.67,123.89,123.86,2.37253844]
[1766537441280,8.07190215,123.89,123.85,1.68253844]
[1766537441477,0.71,123.88,123.85,2.38253844]
[1766537441680,0.71,123.88,123.85,10.45667146]
[1766537441964,0.71,123.88,123.85,11.4040122]
[1766537442286,0.71,123.88,123.86,2.62987918]
[1766537443383,0.71,123.88,123.85,11.4040122]
[1766537443556,0.71,123.87,123.84,2.62987918]
[1766537443955,0.71,123.87,123.83,11.40517995]
[1766537444782,0.71,123.87,123.84,11.40473716]
[1766537445085,0.71,123.87,123.85,2.62987918]
[1766537448490,0.71,123.87,123.84,8.77485798]
[1766537448788,0.71,123.86,123.83,11.40523181]
[1766537449091,0.71,123.86,123.84,2.62987918]
[1766537449586,0.71,123.87,123.84,3.32987918]
[1766537449795,0.71,123.87,123.84,11.40468365]
[1766537450285,21.13951095,123.89,123.84,11.40468365]
[1766537450482,11.14767296,123.89,123.85,11.40397473]
[1766537450682,10.43767296,123.89,123.85,11.40397473]
[1766537450992,0.71,123.88,123.85,11.40397473]
[1766537453998,0.71,123.88,123.85,0.7]
[1766537454594,0.71,123.88,123.85,8.77415111]
[1766537456302,0.71,123.88,123.85,11.40403029]
[1766537461099,0.71,123.88,123.85,8.77415111]
[1766537461315,0.71,123.88,123.85,11.40403029]
[1766537462889,0.71,123.87,123.84,2.62987918]
[1766537463093,0.71,123.87,123.83,15.44]
[1766537463406,0.71,123.87,123.84,3.32987918]
[1766537463607,0.71,123.87,123.84,0.7]
[1766537464100,0.71,123.87,123.84,3.32987918]
[1766537468508,8.07323901,123.87,123.83,2.62987918]
[1766537468811,0.67,123.86,123.83,2.62987918]
[1766537472615,0.67,123.86,123.83,3.28987918]
[1766537474322,0.67,123.86,123.83,11.3654105]
[1766537474523,0.67,123.86,123.84,0.66]
[1766537478523,0.67,123.86,123.83,3.28987918]
[1766537479315,0.67,123.86,123.84,0.66]
[1766537485927,0.67,123.87,123.84,2.62987918]
[1766537486227,2.62987918,123.85,123.81,8.27323901]
[1766537486432,0.67,123.84,123.81,0.2]
[1766537487512,2.62987918,123.84,123.81,0.2]
[1766537487719,0.67,123.83,123.81,0.2]
[1766537488131,0.67,123.82,123.81,0.2]
[1766537488330,0.67,123.82,123.8,0.2]
[1766537490718,0.67,123.81,123.8,0.2]
[1766537499816,10.70599916,123.83,123.8,0.2]
[1766537500137,0.66,123.82,123.8,0.2]
[1766537502118,0.66,123.83,123.8,0.9]
[1766537502341,0.66,123.83,123.8,3.52987918]
[1766537502845,0.66,123.83,123.81,0.7]
[1766537503426,0.66,123.83,123.8,2.82987918]
[1766537503945,0.66,123.83,123.8,1.88459466]
[1766537504120,0.66,123.83,123.8,0.2]
[1766537504325,0.66,123.82,123.8,0.2]
[1766537505750,0.66,123.81,123.8,0.2]
[1766537509850,8.07558749,123.83,123.8,0.2]
[1766537510021,8.07558749,123.83,123.8,2.58459466]
[1766537510225,8.73558749,123.83,123.8,2.58459466]
[1766537510621,0.66,123.83,123.8,2.58459466]
[1766537510852,19.17291459,123.84,123.81,2.38459466]
[1766537511633,0.66,123.83,123.8,1.88459466]
[1766537512242,0.66,123.83,123.8,0.2]
[1766537513355,8.07560481,123.83,123.8,0.2]
[1766537513654,0.66,123.82,123.8,0.2]
[1766537514061,0.66,123.81,123.8,0.2]
[1766537515839,8.07564441,123.83,123.8,0.2]
[1766537516043,8.73564441,123.83,123.8,2.58459466]
[1766537517353,8.07564441,123.83,123.8,2.58459466]
[1766537517561,0.66,123.82,123.8,2.58459466]
[1766537518261,0.66,123.82,123.8,0.9]
[1766537521761,19.17269243,123.84,123.8,9.96210116]
[1766537521950,19.17269243,123.84,123.81,0.7]
[1766537522268,0.66,123.83,123.81,0.7]
[1766537522944,0.66,123.83,123.8,1.88459466]
[1766537523259,0.66,123.83,123.8,2.58459466]
[1766537523861,0.66,123.83,123.8,0.9]
[1766537524059,0.66,123.83,123.8,2.58459466]
[1766537526775,8.07501947,123.84,123.81,0.7]
[1766537527074,8.76297973,123.87,123.84,0.68]
[1766537527268,0.69,123.86,123.83,2.36459466]
[1766537527769,0.69,123.86,123.84,0.68]
[1766537528772,8.76375196,123.86,123.83,2.36459466]
[1766537528974,8.76375196,123.86,123.84,1.68459466]
[1766537531878,0.69,123.86,123.84,1.68459466]
[1766537532061,0.69,123.86,123.84,0.68]
[1766537532963,0.69,123.86,123.84,2.36459466]
[1766537533878,0.69,123.86,123.84,0.68]
[1766537534065,0.69,123.86,123.84,2.36459466]
[1766537537879,0.69,123.87,123.84,0.68]
[1766537538086,0.69,123.87,123.84,2.36459466]
[1766537539649,0.69,123.86,123.84,0.68]
[1766537540273,0.69,123.86,123.83,10.44015681]
[1766537541377,0.69,123.85,123.82,1.68459466]
[1766537541686,0.69,123.85,123.82,2.36459466]
[1766537541888,0.69,123.85,123.82,10.44075145]
[1766537542281,0.69,123.85,123.82,2.36459466]
[1766537544568,0.69,123.84,123.81,2.36459466]
[1766537545279,0.69,123.84,123.81,10.4414565]
[1766537550098,0.69,123.84,123.82,0.68]
[1766537550298,0.69,123.85,123.82,2.36459466]
[1766537556595,0.69,123.85,123.82,2.39459466]
[1766537557102,0.69,123.85,123.82,0.71]
[1766537557292,0.69,123.85,123.82,2.39459466]
[1766537559385,8.07434082,123.85,123.81,10.4714565]
[1766537559587,0.67,123.84,123.81,10.4714565]
[1766537564013,0.67,123.84,123.81,11.41829895]
[1766537567003,0.67,123.85,123.82,3.34143711]
[1766537567300,0.67,123.86,123.83,0.71]
[1766537567508,0.67,123.86,123.83,3.34143711]
[1766537570805,8.74329266,123.87,123.84,0.71]
[1766537571010,8.74329266,123.87,123.84,3.34143711]
[1766537571207,8.74329266,123.87,123.85,0.71]
[1766537571208,0.67,123.87,123.85,0.71]
[1766537571389,0.67,123.88,123.85,3.34143711]
[1766537575191,0.67,123.88,123.85,0.71]
[1766537578017,0.67,123.87,123.85,0.71]
[1766537578714,0.67,123.87,123.84,0.71]
[1766537581817,8.7431057,123.87,123.84,0.71]
[1766537584921,8.7431057,123.87,123.84,3.34143711]
[1766537588120,47.98886046,123.89,123.84,3.34143711]
[1766537588121,27.80911007,123.89,123.84,8.07491515]
[1766537588340,0.72,123.88,123.85,0.7]
[1766537589530,0.72,123.89,123.86,3.33143711]
[1766537592034,0.72,123.89,123.86,0.7]
[1766537600728,0.72,123.88,123.85,0.7]
[1766537601226,0.72,123.88,123.84,11.40607777]
[1766537602553,0.72,123.88,123.85,0.7]
[1766537606443,0.72,123.87,123.84,0.7]
[1766537607855,0.72,123.86,123.83,11.40686825]
[1766537608549,0.72,123.86,123.84,2.63143711]
[1766537610453,8.0726519,123.88,123.84,3.33143711]
[1766537610755,0.72,123.87,123.84,3.33143711]
[1766537611753,0.72,123.87,123.82,3.33143711]
[1766537611754,0.72,123.86,123.82,3.33143711]
[1766537613048,3.35143711,123.86,123.81,11.4079822]
[1766537613232,0.72,123.85,123.81,11.4079822]
[1766537613750,0.72,123.84,123.81,3.33143711]
[1766537619558,0.72,123.84,123.81,11.40812613]
[1766537619744,0.67,123.85,123.82,0.71]
[1766537620058,0.67,123.85,123.82,3.34143711]
[1766537620665,25.17767296,123.88,123.82,2.63143711]
[1766537620868,8.74297973,123.87,123.84,0.71]
[1766537621563,0.67,123.86,123.84,0.71]
[1766537622266,0.67,123.88,123.85,3.34143711]
[1766537622655,8.07241997,123.88,123.85,3.34143711]
[1766537622856,0.67,123.87,123.85,3.34143711]
[1766537624979,0.67,123.88,123.85,3.34143711]
[1766537626078,0.67,123.88,123.85,2.39318104]
[1766537626583,8.74234036,123.88,123.85,0.71]
[1766537626875,0.67,123.87,123.84,10.46811183]
[1766537627283,0.67,123.87,123.82,8.07565607]
[1766537627453,0.67,123.87,123.84,1.68318104]
[1766537627796,0.67,123.87,123.84,0.71]
[1766537629352,0.67,123.87,123.84,2.39318104]
[1766537629990,8.07234036,123.88,123.84,9.75808522]
[1766537630282,8.74234036,123.88,123.85,0.71]
[1766537630482,0.67,123.87,123.85,0.71]
[1766537634485,0.67,123.87,123.84,2.39318104]